bitfinex/quotes_ETHUSD_20240709
["timestamp","ask_amount","ask_price","bid_price","bid_amount"]
[1720533834130,0.5,3069.2,3068.9,6.2584]
[1720533834557,0.5,3069.2,3068.9,3.0]
[1720533834767,0.2259,3070.0,3068.6,3.0]
[1720533835038,0.2259,3070.0,3068.7,0.06516638]
[1720533835277,0.5,3068.8,3068.7,3.0]
[1720533835447,2.3241,3069.8,3068.4,3.25901]
[1720533835645,2.3241,3069.8,3067.8,3.25963]
[1720533835898,2.3241,3069.8,3068.4,3.25901]
[1720533836062,0.5,3068.5,3068.4,3.25901]
[1720533836384,0.5,3068.5,3068.4,3.910815]
[1720533836587,0.5,3068.5,3067.9,3.25946]
[1720533836783,3.425,3069.7,3067.9,3.25945]
[1720533836784,2.356,3068.8,3067.9,3.25945]
[1720533837381,2.356,3068.8,3067.6,3.25981]
[1720533837382,0.5,3068.0,3067.7,3.25974]
[1720533837741,2.356,3068.8,3067.6,3.25986]
[1720533837940,0.2356,3068.7,3067.6,3.25986]
[1720533838157,0.5,3067.7,3067.6,3.25986]
[1720533838881,0.5,3067.7,3067.6,6.51973]
[1720533839252,0.5,3067.7,3067.6,3.0]
[1720533839472,0.5,3067.7,3067.6,6.51974]
[1720533839779,0.5,3067.7,3067.4,0.1139918]
[1720533839981,0.5,3067.7,3067.4,3.77664108]
[1720533840187,0.5,3067.7,3067.5,6.25998]
[1720533840385,0.5,3067.7,3067.5,3.0]
[1720533840677,0.5,3067.7,3067.6,6.51974]
[1720533840880,1.66492658,3070.4,3068.4,3.25902]
[1720533840881,2.3363,3069.8,3068.4,3.25902]
[1720533841093,2.3363,3069.8,3068.5,0.39106961]
[1720533841248,2.3363,3069.8,3068.5,3.325902]
[1720533841581,0.5,3068.6,3068.4,3.0]
[1720533841738,2.3363,3068.8,3067.9,3.0]
[1720533841944,0.5,3068.0,3067.4,3.3740118]
[1720533842217,2.3363,3068.8,3067.4,0.1139918]
[1720533842414,3.425,3068.8,3067.4,0.1139918]
[1720533842703,5.7306,3068.6,3067.4,0.1139918]
[1720533843337,5.7306,3068.6,3063.1,0.0519]
[1720533843338,2.3712,3067.4,3065.7,0.4305]
[1720533843533,2.3712,3067.4,3066.1,3.26146]
[1720533843855,2.3712,3067.4,3066.0,3.2615]
[1720533844000,2.3416,3067.2,3065.7,0.4305]
[1720533844201,3.425,3067.3,3065.7,0.4305]
[1720533844202,2.3416,3067.0,3065.7,0.4305]
[1720533844430,3.425,3066.7,3065.7,0.4305]
[1720533844652,3.425,3066.5,3065.7,0.4305]
[1720533844955,3.0,3066.6,3064.3,0.1139918]
[1720533844956,2.2828,3066.2,3064.3,0.1139918]
[1720533845106,2.2828,3065.7,3064.3,0.1139918]
[1720533845412,1.5,3065.3,3064.3,0.1139918]
[1720533845594,0.60538,3065.6,3063.1,0.0519]
[1720533845595,2.3117,3064.9,3063.1,0.0519]
[1720533845798,4.825,3064.3,3063.1,0.0519]
[1720533846103,0.92739615,3064.2,3063.1,0.0519]
[1720533846300,0.92739615,3064.2,3062.2,0.079]
[1720533846301,2.4518,3063.6,3062.2,0.079]
[1720533846506,2.4518,3063.1,3062.2,0.079]
[1720533846940,0.55,3063.0,3062.2,0.1164374]
[1720533847138,3.771,3062.7,3060.2,1.309332]
[1720533847436,3.771,3062.7,3059.3,0.16117074]
[1720533847437,2.2751,3062.2,3058.5,1.5]
[1720533847646,0.5,3062.3,3057.8,5.7015154]
[1720533847647,0.5,3062.3,3060.0,3.771]
[1720533847809,2.2751,3063.1,3061.8,3.26594]
[1720533848021,2.2751,3063.1,3062.0,3.26573]
[1720533848217,2.2751,3063.1,3061.6,3.771]
[1720533848436,3.0,3065.5,3061.0,3.26684]
[1720533848437,2.3011,3064.0,3062.6,3.26509]
[1720533848598,2.3011,3065.5,3062.7,0.06528456]
[1720533848799,0.290648,3065.4,3064.1,3.26359]
[1720533849024,0.290648,3065.4,3063.6,3.995]
[1720533849207,0.290648,3065.4,3063.5,3.26415]
[1720533849208,0.290648,3065.4,3063.7,3.0]
[1720533849419,0.290648,3065.4,3063.8,0.55]
[1720533849627,0.5,3063.9,3063.2,3.0]
[1720533849809,0.5,3063.9,3063.3,0.62349215]
[1720533850012,0.5,3063.9,3062.6,3.26509]
[1720533850227,5.827,3064.7,3061.8,2.3554]
[1720533850401,5.827,3064.7,3061.8,3.26602]
[1720533850402,1.5,3064.4,3061.8,3.26602]
[1720533850604,2.402,3063.7,3061.4,0.06530702]
[1720533850801,0.5,3062.4,3061.4,0.39532987]
[1720533851121,0.5,3062.4,3061.7,3.26615]
[1720533851301,0.5,3062.4,3061.4,0.33002285]
[1720533851501,2.4327,3064.6,3061.8,3.995]
[1720533851744,2.4327,3064.6,3062.3,3.26547]
[1720533851947,0.24327,3064.5,3063.2,3.2645]
[1720533852245,0.24327,3064.5,3062.4,3.39182446]
[1720533852246,0.24327,3064.5,3062.4,0.326547]
[1720533852546,0.24327,3064.5,3063.4,3.26429]
[1720533852854,0.24327,3064.5,3063.3,0.06527936]
[1720533853145,2.4327,3064.6,3063.6,3.26404]
[1720533853469,1.5,3066.0,3063.1,3.26466]
[1720533853649,0.5,3063.8,3063.2,3.0]
[1720533853816,2.4959,3064.5,3062.1,3.26573]
[1720533854004,0.24959,3064.4,3062.2,0.726073]
[1720533854640,3.0,3065.4,3063.5,3.26422]
[1720533854857,3.0,3065.7,3063.3,3.26445]
[1720533855002,3.425,3065.7,3063.4,3.26434]
[1720533855206,3.425,3065.7,3063.1,3.26464]
[1720533855207,3.425,3065.7,3063.7,3.26398]
[1720533855524,3.425,3065.7,3063.6,3.26411]
[1720533855698,3.425,3065.5,3063.7,6.81397]
[1720533855902,3.425,3065.5,3063.7,3.55]
[1720533856204,0.58606,3065.6,3064.3,3.26337]
[1720533856406,2.4356,3065.8,3064.4,0.06525322]
[1720533856757,2.4356,3065.8,3064.4,3.0]
[1720533856923,2.4356,3065.8,3063.9,3.0]
[1720533857103,0.5,3064.5,3063.9,3.0]
[1720533857308,0.5,3064.5,3063.9,6.26372]
[1720533857700,3.425,3065.7,3063.9,3.0]
[1720533857937,2.4356,3065.8,3064.0,0.06526258]
[1720533857938,0.58606,3065.6,3064.0,0.06526258]
[1720533858141,2.4356,3065.8,3064.5,3.26315]
[1720533858360,2.4356,3065.8,3064.8,6.52566]
[1720533858652,0.5,3064.9,3064.8,3.26283]
[1720533858856,0.5,3064.9,3064.8,6.26283]
[1720533859059,0.5,3064.9,3064.8,6.32808]
[1720533859363,0.5,3064.9,3064.8,14.036588]
[1720533859557,3.0,3068.9,3066.0,3.26153]
[1720533859558,2.4037,3067.9,3066.0,3.26153]
[1720533859840,2.4037,3067.9,3066.2,3.26136]
[1720533860051,2.4037,3067.9,3066.4,3.26107]
[1720533860252,0.24037,3067.8,3066.5,3.65233464]
[1720533860543,0.24037,3067.8,3066.6,3.87611388]
[1720533860743,0.5,3066.7,3066.6,6.87614388]
[1720533860914,0.5,3066.7,3066.6,7.13708388]
[1720533861152,0.5,3066.7,3066.6,13.33282]
[1720533862046,0.5,3066.7,3066.6,10.07188]
[1720533862460,0.5,3066.7,3066.6,6.81094]
[1720533862662,0.5,3066.7,3066.6,9.52188]
[1720533862864,0.5,3066.7,3066.6,12.78282]
[1720533863186,2.3294,3069.1,3067.8,3.25965]
[1720533863477,2.3294,3069.1,3066.7,3.26079]
[1720533863478,2.3294,3069.1,3067.0,3.2605]
[1720533863649,0.23294,3069.0,3067.1,3.0]
[1720533863970,0.5,3067.9,3067.1,3.0]
[1720533864179,0.5,3067.9,3066.8,3.06519596]
[1720533864334,0.5,3067.9,3066.9,3.81055]
[1720533864541,0.23294,3069.0,3067.8,3.25956]
[1720533864786,0.256234,3068.9,3067.8,3.25956]
[1720533865076,0.256234,3068.9,3067.9,3.0]
[1720533865374,0.5,3068.1,3068.0,3.80944]
[1720533865570,0.5,3068.1,3068.0,3.55]
[1720533865758,0.5,3068.1,3068.0,3.0]
[1720533865959,0.5,3068.1,3067.8,3.25965]
[1720533866271,2.2959,3069.7,3068.1,3.25933]
[1720533866435,0.22959,3069.6,3068.2,3.0]
[1720533866638,0.22959,3069.6,3068.2,3.32433187]
[1720533866838,0.22959,3069.6,3068.3,3.0]
[1720533867087,0.22959,3069.6,3067.9,3.0]
[1720533867292,0.5,3068.0,3067.6,3.25979]
[1720533867644,0.5,3068.0,3067.9,3.25955]
[1720533867879,0.22959,3069.6,3068.6,3.25873]
[1720533868183,0.22959,3069.6,3068.7,0.06516582]
[1720533868478,0.22959,3069.6,3067.6,0.651986]
[1720533868479,0.5,3068.7,3067.6,0.651986]
[1720533868679,0.5,3068.7,3067.6,3.0]
[1720533868982,0.22959,3069.6,3067.8,3.25963]
[1720533869140,0.22959,3069.6,3068.5,3.25887]
[1720533869346,0.22959,3069.6,3067.9,3.0]
[1720533869347,0.22959,3069.6,3068.6,3.0]
[1720533869541,0.22959,3069.6,3068.8,3.25858]
[1720533869879,0.5,3068.9,3067.9,3.0]
[1720533870095,2.3747,3069.6,3067.9,3.25946]
[1720533870378,2.3747,3069.6,3067.6,3.0]
[1720533870379,2.3747,3069.6,3068.0,3.0]
[1720533870743,0.5,3068.0,3067.9,3.25955]
[1720533870943,0.5,3068.0,3067.9,9.5191]
[1720533871588,0.5,3068.0,3067.9,10.47101]
[1720533871794,0.5,3068.0,3067.9,6.25955]
[1720533871945,0.5,3068.0,3067.9,6.80955]
[1720533872317,0.5,3068.0,3067.9,10.0691]
[1720533872644,0.5,3068.0,3067.9,6.80955]
[1720533872840,0.5,3068.0,3067.9,3.0]
[1720533873071,0.5,3068.0,3067.7,3.0]
[1720533873278,3.425,3069.3,3067.5,3.25994]
[1720533873443,0.6425,3069.2,3067.6,3.25979]
[1720533873645,0.6425,3069.2,3068.2,3.25916]
[1720533873845,0.5,3067.9,3067.8,6.51932]
[1720533874091,2.3747,3069.6,3068.7,3.2586]
[1720533874244,2.3749,3070.6,3068.9,3.25849]
[1720533874640,0.5,3069.0,3068.8,3.0]
[1720533875095,3.425,3070.5,3068.3,3.2591]
[1720533875382,3.425,3070.3,3067.6,3.995]
[1720533875583,3.425,3070.3,3068.0,3.25945]
[1720533875790,3.425,3069.9,3068.1,3.0]
[1720533876109,0.5,3068.2,3068.1,9.51868]
[1720533876446,0.5,3068.2,3068.1,13.32802]
[1720533876684,0.5,3068.2,3068.1,11.727437]
[1720533877189,0.5,3068.2,3068.1,10.06868]
[1720533877392,0.5,3068.2,3068.1,3.0]
[1720533877689,5.9008,3070.0,3068.2,3.2592]
[1720533877895,5.9008,3070.0,3068.3,6.25912]
[1720533878193,0.5,3068.4,3068.3,9.51826]
[1720533878688,0.5,3068.4,3068.3,10.06826]
[1720533879369,0.5,3068.4,3068.3,14.660145]
[1720533879680,0.5,3068.4,3068.3,18.655145]
[1720533880268,0.5,3068.4,3068.3,21.914275]
[1720533880464,0.5,3068.4,3068.3,18.655145]
[1720533881084,0.5,3068.4,3068.3,14.660145]
[1720533882092,0.5,3068.4,3068.3,21.115445]
[1720533882303,0.5,3068.4,3068.3,27.799575]
[1720533882581,2.307,3070.6,3069.7,3.25756]
[1720533882781,2.307,3070.6,3069.8,3.2575]
[1720533882991,2.307,3070.6,3069.9,3.25741]
[1720533883361,0.5,3070.0,3069.5,0.06513576]
[1720533883561,0.5,3070.0,3069.9,6.51486]
[1720533883787,0.5,3070.0,3069.9,10.716346]
[1720533884117,2.3153,3071.5,3069.9,3.0]
[1720533884422,0.5,3070.0,3069.9,6.25743]
[1720533884612,0.5,3070.0,3069.5,3.25781]
[1720533884914,0.5,3070.0,3069.3,6.51605]
[1720533885113,5.7403,3071.5,3069.4,6.80795]
[1720533885276,0.5,3069.5,3069.1,3.25821]
[1720533885480,3.425,3071.1,3069.2,3.25808]
[1720533885678,3.425,3070.9,3069.2,3.25808]
[1720533885882,3.425,3070.9,3069.3,3.25801]
[1720533886101,3.0,3070.8,3069.3,3.25801]
[1720533886301,0.57403,3071.4,3069.3,3.97483681]
[1720533886611,2.3153,3071.5,3069.7,3.2576]
[1720533886771,0.34120147,3071.3,3069.8,3.0]
[1720533886973,0.34120147,3071.3,3069.4,3.0]
[1720533887212,0.5,3069.9,3069.4,3.0]
[1720533887371,0.5,3069.9,3068.7,3.25867]
[1720533887372,0.5,3069.9,3068.9,3.25842]
[1720533887573,2.433,3070.2,3068.8,3.25851]
[1720533887773,0.5,3068.9,3068.8,3.25851]
[1720533887990,0.2433,3070.1,3068.9,3.25849]
[1720533888170,0.5,3069.0,3068.9,3.25849]
[1720533888375,0.5,3069.0,3068.9,6.58214208]
[1720533889009,0.5,3069.0,3068.9,9.84063208]
[1720533889177,0.5,3069.0,3068.9,13.75953321]
[1720533889380,0.5,3069.0,3068.9,11.05104321]
[1720533889791,0.5,3069.0,3068.9,10.06698]
[1720533890821,0.5,3069.0,3068.9,3.55]
[1720533891120,0.5,3069.0,3068.3,7.37]
[1720533891323,2.4689,3069.5,3068.4,3.25895]
[1720533891494,0.24689,3069.4,3068.7,3.25869]
[1720533891919,0.24689,3069.4,3068.4,3.25896]
[1720533892229,0.24689,3069.4,3068.3,7.37]
[1720533892515,0.5,3068.4,3068.3,10.62913]
[1720533892927,0.5,3068.4,3068.3,13.88826]
[1720533893130,0.5,3068.4,3068.3,18.862136]
[1720533893623,0.5,3068.4,3068.3,17.751266]
[1720533893983,0.5,3068.4,3068.3,18.626866]
[1720533894288,0.5,3069.6,3069.5,3.25779]
[1720533894621,0.5,3069.6,3069.5,3.0]
[1720533894815,0.5,3069.6,3069.4,3.0]
[1720533895028,2.3618,3070.2,3069.0,3.0]
[1720533895328,0.5,3069.1,3068.7,7.37]
[1720533895529,0.23618,3070.1,3068.7,3.25862]
[1720533895709,1.12880019,3070.0,3068.8,3.25859]
[1720533895907,0.23618,3070.1,3069.0,3.25836]
[1720533896224,2.3618,3070.2,3069.2,3.25811]
[1720533896515,0.5,3069.3,3068.8,3.25854]
[1720533896722,2.3618,3070.2,3068.9,3.0]
[1720533896920,1.1288167,3070.1,3069.0,3.25829]
[1720533897115,0.34906167,3070.1,3069.1,3.25821]
[1720533897424,0.34120147,3071.3,3069.4,3.25787]
[1720533897646,3.39821154,3071.2,3069.6,3.25775]
[1720533897920,0.5,3069.7,3069.5,6.25777]
[1720533898485,0.5,3069.7,3069.5,3.0]
[1720533898702,0.5,3069.7,3069.5,3.25777]
[1720533898906,3.0,3071.0,3069.4,3.0]
[1720533899135,0.5,3069.5,3069.2,3.55]
[1720533899447,0.5,3069.5,3068.8,7.37]
[1720533899608,2.2665,3070.0,3068.9,3.25848]
[1720533899949,0.5,3069.0,3068.9,3.25848]
[1720533900314,0.5,3069.0,3068.8,7.37]
[1720533900506,0.5,3069.0,3068.8,10.6285]
[1720533900702,0.5,3069.0,3068.9,3.0]
[1720533900945,0.5,3069.0,3068.3,7.37]
[1720533901241,3.425,3069.8,3068.0,7.37]
[1720533901451,3.425,3069.6,3067.7,10.62972]
[1720533901604,0.5,3067.8,3067.7,10.62972]
[1720533901806,0.5,3067.8,3067.7,6.51949]
[1720533902046,0.5,3067.8,3067.7,9.77926]
[1720533902343,0.5,3067.8,3067.7,11.16320433]
[1720533902704,0.5,3067.8,3067.7,14.71320433]
[1720533902906,0.5,3067.8,3067.7,11.45343433]
[1720533903145,0.5,3067.8,3067.7,7.06949]
[1720533903348,0.5,3067.8,3067.7,3.25972]
[1720533903946,0.5,3067.8,3067.7,3.25977]
[1720533904444,0.5,3067.8,3067.2,7.37]
[1720533904604,0.5,3067.8,3067.4,3.26008]
[1720533904807,2.3557,3068.3,3067.2,7.37]
[1720533905003,0.23557,3068.2,3067.2,7.37]
[1720533905322,0.5,3067.3,3066.6,7.37]
[1720533905646,0.5,3067.3,3066.3,7.37]
[1720533905810,3.425,3067.9,3066.3,7.37]
[1720533906155,5.7807,3067.6,3066.0,7.37]
[1720533906357,0.5,3066.4,3066.0,7.37]
[1720533906524,0.5,3066.4,3065.6,7.37]
[1720533906724,3.0,3067.3,3065.7,3.26189]
[1720533907053,0.5,3065.8,3065.6,7.37]
[1720533907250,0.5,3065.8,3065.4,3.2622]
[1720533907559,2.4837,3066.5,3065.7,3.26189]
[1720533907758,2.73207,3066.5,3065.7,3.26189]
[1720533907928,0.5,3065.8,3065.7,3.26189]
[1720533908133,0.5,3065.8,3065.7,6.52378]
[1720533908456,0.5,3065.8,3065.7,3.26189]
[1720533908647,0.5,3065.8,3065.7,6.26189]
[1720533908845,0.5,3065.8,3065.5,3.26203]
[1720533909048,2.4837,3066.5,3065.6,3.26199]
[1720533909250,2.4837,3066.5,3065.7,3.26181]
[1720533909442,2.4837,3066.5,3065.8,3.26176]
[1720533909634,2.4436,3067.3,3065.9,3.26158]
[1720533909836,0.5,3066.0,3065.9,3.26158]
[1720533910147,0.5,3066.0,3065.9,3.0]
[1720533910348,3.96936,3067.2,3065.5,7.37]
[1720533910520,0.5,3065.6,3065.1,7.37]
[1720533910721,10.835,3067.0,3065.3,3.26224]
[1720533911069,1.3835,3066.9,3065.5,3.26201]
[1720533911235,3.54436,3067.2,3065.9,3.26166]
[1720533911435,3.54436,3067.2,3065.4,3.0]
[1720533911436,0.54436,3067.2,3066.0,0.06522584]
[1720533911635,2.4436,3067.3,3065.7,3.26182]
[1720533911636,0.5,3066.1,3065.7,3.26182]
[1720533911845,2.4436,3067.3,3065.8,3.0]
[1720533912158,0.5,3065.8,3065.3,7.37]
[1720533912377,0.5,3065.8,3064.9,7.37]
[1720533912523,2.2549,3066.2,3064.9,7.37]
[1720533912723,0.22549,3066.1,3064.5,7.37]
[1720533912954,0.22549,3066.1,3064.2,3.26346]
[1720533913260,0.5,3064.6,3063.8,7.37]
[1720533913483,0.5,3064.6,3064.5,3.26317]
[1720533913619,2.425,3065.9,3065.1,3.26251]
[1720533913820,0.2425,3065.8,3064.1,10.63359]
[1720533914026,0.2425,3065.8,3063.7,3.995]
[1720533914027,0.5,3065.2,3064.4,3.26325]
[1720533914225,3.6675,3065.8,3063.7,11.365]
[1720533914520,0.2425,3065.8,3064.4,3.26327]
[1720533914747,3.2425,3065.8,3064.5,3.26314]
[1720533915072,2.425,3065.9,3064.6,0.06525707]
[1720533915357,2.425,3065.9,3065.1,3.26252]
[1720533915581,0.5,3065.2,3065.1,3.26252]
[1720533915862,0.5,3065.2,3064.8,3.0]
[1720533916070,2.425,3065.9,3064.7,7.37]
[1720533916071,5.85,3065.9,3064.7,7.37]
[1720533916222,4.01,3065.8,3063.6,7.37]
[1720533916422,4.01,3065.8,3061.8,19.8]
[1720533916423,0.5,3064.5,3063.5,3.26414]
[1720533916659,2.2708,3064.7,3063.7,3.26399]
[1720533916834,0.5,3063.8,3063.7,3.26399]
[1720533917245,0.5,3063.8,3063.5,3.2642]
[1720533917498,0.5,3063.8,3063.6,3.26412]
[1720533917660,0.5,3063.8,3063.7,9.52804]
[1720533918026,2.2708,3064.7,3063.8,3.26388]
[1720533918370,2.2708,3064.7,3064.0,3.26369]
[1720533918572,0.5,3064.1,3064.0,3.26369]
[1720533918720,0.5,3064.1,3064.0,7.216431]
[1720533919057,0.5,3064.1,3064.0,6.26369]
[1720533919465,0.5,3064.1,3064.0,3.0]
[1720533919621,0.5,3064.1,3064.0,3.2637]
[1720533919966,2.4955,3065.4,3064.2,3.26341]
[1720533920335,0.5,3064.3,3064.2,6.5269]
[1720533920567,0.5,3064.3,3064.2,10.505956]
[1720533921441,0.5,3064.3,3064.2,14.319446]
[1720533922544,0.5,3064.3,3064.2,9.5269]
[1720533922743,0.5,3064.3,3064.2,3.0]
[1720533922983,0.5,3064.3,3064.1,3.0]
[1720533923290,0.5,3064.3,3063.5,7.37]
[1720533923459,2.483,3064.9,3063.4,3.26425]
[1720533923653,0.2483,3064.8,3063.4,3.26425]
[1720533924263,0.5,3063.5,3063.4,3.26425]
[1720533926082,0.5,3063.5,3063.4,6.52859]
[1720533926306,0.5,3063.5,3063.4,9.52859]
[1720533926595,0.5,3063.5,3063.4,17.33793]
[1720533926803,0.5,3063.5,3063.4,11.812383]
[1720533926986,0.5,3063.5,3063.2,3.26452]
[1720533927158,0.5,3063.5,3063.1,7.37]
[1720533927357,0.5,3063.5,3062.6,7.37]
[1720533927561,2.4511,3063.8,3062.2,11.365]
[1720533927910,0.5,3063.0,3062.9,6.52974]
[1720533928065,0.5,3063.0,3062.9,10.447584]
[1720533928264,2.4511,3064.4,3063.4,3.26427]
[1720533928464,0.5,3063.5,3063.4,3.26427]
[1720533928687,0.5,3063.5,3063.2,3.26447]
[1720533928901,2.4511,3064.4,3063.3,6.26443]
[1720533929107,0.24511,3064.3,3063.3,9.5288]
[1720533929322,0.5,3063.4,3063.3,9.5288]
[1720533929812,2.3856,3065.8,3063.5,3.425]
[1720533930039,2.3856,3065.8,3065.1,3.2625]
[1720533930369,2.73706895,3066.4,3065.3,3.26228]
[1720533930574,0.2737069,3066.3,3065.3,3.26228]
[1720533931222,2.3955,3066.4,3065.1,3.26243]
[1720533931390,2.3955,3066.4,3065.9,3.26168]
[1720533931570,3.425,3067.5,3066.1,3.26145]
[1720533931571,2.3955,3067.4,3066.1,3.26145]
[1720533931771,2.3955,3067.4,3066.3,3.26124]
[1720533932014,2.3955,3067.4,3066.4,3.26113]
[1720533932308,0.27370475,3067.3,3066.4,3.26113]
[1720533932908,0.27370475,3067.3,3066.1,3.26142]
[1720533933111,0.27370475,3067.3,3066.2,6.26136]
[1720533933320,0.27370475,3067.3,3065.5,3.26201]
[1720533933321,0.27370475,3067.3,3065.5,3.26208]
[1720533933485,3.69870475,3067.3,3065.3,3.26228]
[1720533933813,2.3254,3067.0,3065.4,3.26214]
[1720533933998,5.3254,3067.0,3065.5,3.0]
[1720533934205,5.3254,3067.0,3065.6,3.26197]
[1720533934393,5.3254,3067.0,3065.5,3.0]
[1720533934589,8.7504,3067.0,3065.5,3.0]
[1720533934787,3.425,3066.8,3065.2,3.26238]
[1720533935081,3.0,3066.7,3065.4,3.26214]
[1720533935282,3.0,3066.7,3065.3,3.0]
[1720533935599,3.0,3066.7,3065.6,3.26199]
[1720533935804,3.425,3066.8,3065.3,3.0]
[1720533936012,3.425,3066.4,3064.5,3.26316]
[1720533936200,3.425,3066.2,3064.3,3.2633]
[1720533936422,6.89779188,3066.1,3064.4,3.26326]
[1720533936632,3.0,3066.0,3064.6,3.26303]
[1720533936843,0.87674,3065.9,3064.6,3.26303]
[1720533937009,0.87674,3065.9,3064.5,3.26309]
[1720533937553,0.87674,3065.9,3064.6,3.26306]
[1720533937849,0.87674,3065.9,3064.7,3.26296]
[1720533938043,0.87674,3065.9,3064.4,6.52644]
[1720533938247,0.387674,3065.8,3064.5,3.0]
[1720533939317,0.387674,3065.8,3064.7,3.26295]
[1720533939826,0.387674,3065.8,3064.5,3.0]
[1720533940609,0.387674,3065.8,3064.7,3.26295]
[1720533941213,0.387674,3065.8,3064.6,3.26306]
[1720533941409,0.387674,3065.8,3064.5,3.0]
[1720533941615,0.3812674,3065.7,3064.4,3.26327]
[1720533941859,0.3812674,3065.7,3064.5,3.0]
[1720533942142,0.3812674,3065.7,3064.0,10.63363]
[1720533942143,3.425,3065.6,3064.0,10.63363]
[1720533942348,2.4478,3065.4,3064.1,3.26351]
[1720533942567,0.54478,3065.3,3064.0,7.37]
[1720533943044,0.54478,3065.3,3064.0,10.63368]
[1720533943250,0.54478,3065.3,3064.1,3.26359]
[1720533943761,0.54478,3065.3,3064.0,10.63368]
[1720533943762,0.54478,3065.3,3064.2,3.26349]
[1720533943933,2.4478,3065.4,3064.6,3.26303]
[1720533944864,0.3812674,3065.7,3064.9,3.2627]
[1720533945158,2.315,3066.0,3064.6,3.26305]
[1720533945369,1.13048293,3065.9,3064.7,3.0]
[1720533945585,4.55551707,3065.8,3064.7,3.0]
[1720533945722,1.13051707,3065.7,3064.3,3.0]
[1720533946071,1.13051707,3065.7,3064.3,6.26337]
[1720533946225,0.45555171,3065.6,3064.3,6.26337]
[1720533946960,6.425,3065.8,3064.3,6.26337]
[1720533947362,3.54980552,3065.7,3064.3,3.0]
[1720533947591,3.0,3065.6,3064.3,3.0]
[1720533947761,1.13053803,3065.5,3064.3,3.0]
[1720533948263,1.13053803,3065.5,3064.1,3.0]
[1720533949173,1.13053803,3065.5,3064.1,6.26357]
[1720533951147,0.78971567,3065.4,3064.3,3.26332]
[1720533951350,0.78971567,3065.4,3064.3,6.5266]
[1720533951690,3.34161862,3065.6,3064.3,6.5266]
[1720533951842,3.34161862,3065.6,3064.7,3.26296]
[1720533951843,1.13053745,3065.5,3064.7,3.26296]
[1720533952040,3.34161862,3065.6,3064.7,3.26296]
[1720533952373,3.34161862,3065.6,3064.5,3.26308]
[1720533952675,0.57609186,3065.5,3064.5,6.52615]
[1720533952972,0.57609186,3065.5,3064.5,3.26307]
[1720533953472,0.57609186,3065.5,3064.1,6.26351]
[1720533953659,0.57609186,3065.5,3064.1,3.0]
[1720533954040,3.425,3065.1,3063.2,12.25]
[1720533954274,3.425,3065.1,3063.6,3.26412]
[1720533954640,3.0,3065.0,3063.6,3.26412]
[1720533955679,2.2536,3065.2,3063.8,3.26386]
[1720533955890,2.2536,3065.2,3063.9,3.0]
[1720533956055,1.35605602,3065.1,3063.9,3.0]
[1720533956254,0.90778501,3065.0,3063.9,3.0]
[1720533956470,0.90778501,3065.0,3063.8,3.26388]
[1720533956844,0.90778501,3065.0,3063.6,3.26408]
[1720533957043,0.90778501,3065.0,3063.7,3.26402]
[1720533957239,0.7558145,3064.9,3063.8,3.2639]
[1720533957463,2.2536,3065.2,3064.0,3.26362]
[1720533957653,2.2536,3065.2,3064.1,0.06526294]
[1720533958060,2.2536,3065.2,3064.2,3.26347]
[1720533959190,2.2536,3065.2,3063.9,3.26381]
[1720533959357,2.03806045,3065.1,3063.7,3.26393]
[1720533959539,2.4672265,3065.0,3063.4,3.26424]
[1720533959741,2.03806045,3064.9,3063.5,3.0]
[1720533959945,2.03806045,3064.8,3063.5,6.26417]
[1720533960149,1.13077248,3064.7,3063.6,3.26412]
[1720533960349,0.42916605,3065.0,3063.7,3.26394]
[1720533960649,2.03827844,3064.9,3063.7,3.26394]
[1720533960873,0.24674445,3064.8,3063.7,3.26394]
[1720533961087,0.42916605,3065.0,3063.7,3.26394]
[1720533961288,1.13068063,3064.9,3063.7,3.26394]
[1720533961495,3.425,3064.7,3063.1,7.37]
[1720533961694,4.47639491,3064.6,3063.2,6.26449]
[1720533961858,2.82825109,3064.5,3063.2,9.52898]
[1720533962059,0.79013949,3064.5,3063.3,3.26442]
[1720533962287,1.13087052,3064.4,3063.4,3.0]
[1720533962499,0.42916605,3065.0,3063.5,0.06527178]
[1720533962698,2.03807427,3064.9,3063.8,3.26383]
[1720533962898,1.37740533,3064.8,3064.1,3.26358]
[1720533963055,0.42916605,3065.0,3064.1,3.26358]
[1720533963481,1.13066296,3064.9,3064.0,3.26368]
[1720533963797,1.13066296,3064.8,3063.9,3.2638]
[1720533963970,1.13066296,3064.9,3063.7,0.06526797]
[1720533964159,2.3555,3065.1,3064.2,3.26343]
[1720533964361,2.3555,3065.1,3064.4,3.26327]
[1720533964609,2.3555,3065.1,3064.2,3.26339]
[1720533964897,2.03789769,3065.0,3063.7,3.26396]
[1720533965106,0.90734285,3064.9,3063.6,7.37]
[1720533965262,5.7596,3064.8,3063.2,3.26452]